bitfinex/quotes_ETHUSD_20260203
["timestamp","ask_amount","ask_price","bid_price","bid_amount"]
[1770110189855,0.0011,2273.4,2270.5,0.1024]
[1770110190259,0.0011,2273.4,2271.1,7.63341515]
[1770110190483,0.0011,2273.4,2271.4,0.1024]
[1770110190860,0.0011,2273.4,2271.4,1.10064277]
[1770110191055,0.0011,2273.4,2271.6,0.1024]
[1770110191288,1.09885279,2275.1,2271.6,0.1024]
[1770110191289,1.09885279,2275.1,2271.6,12.35648601]
[1770110191498,1.32149605,2275.8,2273.0,7.63341515]
[1770110191499,1.21060481,2275.6,2273.0,7.63341515]
[1770110191795,1.21059847,2275.6,2273.0,7.63341515]
[1770110191995,1.21058945,2275.6,2273.0,7.63341515]
[1770110192155,0.1119715,2275.6,2273.0,7.63341515]
[1770110192495,1.21058974,2275.6,2273.2,7.63341515]
[1770110192656,1.21058974,2275.6,2273.3,0.1024]
[1770110192657,0.1119715,2275.6,2273.3,0.1024]
[1770110192857,0.1119715,2275.6,2274.0,1.09938434]
[1770110193059,0.00326,2275.8,2274.1,0.922]
[1770110193496,0.00326,2275.8,2274.0,1.09938434]
[1770110193659,1.09788766,2277.1,2274.4,7.63341515]
[1770110193995,4.39039381,2277.8,2274.2,0.922]
[1770110194199,4.38730314,2279.4,2276.3,7.63341515]
[1770110194402,4.38730314,2279.4,2276.4,0.922]
[1770110194702,2.46639,2279.3,2276.4,0.922]
[1770110194884,5.397811,2279.3,2276.4,0.922]
[1770110195094,1.09687609,2279.2,2276.5,1.09817702]
[1770110195294,1.09687609,2279.2,2276.6,0.922]
[1770110195478,1.09687609,2279.2,2276.7,0.922]
[1770110195894,1.09677985,2279.4,2276.7,0.922]
[1770110196311,0.02174,2279.6,2276.7,13.27848601]
[1770110196514,0.02174,2279.6,2277.9,7.63341515]
[1770110196718,0.1119715,2280.2,2277.8,12.35648601]
[1770110197021,0.1119715,2280.2,2278.0,12.45888601]
[1770110197317,0.1119715,2280.2,2278.1,12.35648601]
[1770110197889,0.1119715,2280.2,2278.2,2.8176917]
[1770110198118,0.1119715,2280.2,2278.1,12.35648601]
[1770110198417,0.1119715,2280.2,2278.3,0.921]
[1770110198584,0.1119715,2280.2,2278.1,12.35648601]
[1770110198788,0.1119715,2280.2,2278.2,2.77377085]
[1770110198989,0.1119715,2280.2,2278.3,1.09730939]
[1770110199409,0.1119715,2280.2,2278.4,1.4316917]
[1770110199715,0.1119715,2280.2,2278.4,0.921]
[1770110201027,0.1024,2281.6,2278.4,0.921]
[1770110201028,1.09557824,2281.9,2279.1,12.35648601]
[1770110201323,1.43037532,2283.1,2279.6,7.63341515]
[1770110201324,2.514464,2282.9,2279.6,7.63341515]
[1770110201820,0.0011,2280.2,2279.1,12.35648601]
[1770110202019,6.277528,2282.9,2279.7,2.306]
[1770110202316,3.741991,2282.9,2279.9,7.63341515]
[1770110202518,3.741991,2282.9,2280.0,2.306]
[1770110202519,3.209984,2282.9,2280.0,2.306]
[1770110202822,3.209984,2282.9,2279.9,7.63341515]
[1770110202823,3.20741,2282.9,2280.1,0.921]
[1770110203000,1.09505037,2283.0,2279.3,22.12143341]
[1770110203001,6.584546,2282.5,2280.2,1.09639505]
[1770110203202,0.1024,2282.4,2280.2,2.01739505]
[1770110203404,4.673286,2282.3,2280.2,2.01739505]
[1770110203713,0.1024,2282.6,2280.2,2.01739505]
[1770110204527,0.1024,2282.6,2280.2,1.97350672]
[1770110204824,1.09519428,2282.7,2280.2,2.38799526]
[1770110205025,0.0011,2283.1,2280.2,14.23378957]
[1770110205323,0.0011,2283.1,2280.6,7.63341515]
[1770110205522,0.0011,2283.1,2280.7,12.35648601]
[1770110205726,0.0011,2283.1,2281.4,7.63341515]
[1770110206429,1.09442717,2284.3,2281.4,19.98990116]
[1770110206724,11.9226009,2286.2,2282.1,12.35648601]
[1770110206906,5.752998,2286.9,2283.1,12.35648601]
[1770110207114,0.22764847,2286.2,2283.6,7.63341515]
[1770110207323,1.09323071,2286.8,2283.6,7.63341515]
[1770110207522,1.09323071,2286.8,2283.7,2.304]
[1770110207722,3.167077,2286.7,2283.8,0.92]
[1770110207930,3.167077,2286.7,2283.4,12.35648601]
[1770110208134,4.753077,2286.6,2283.5,0.92]
[1770110208495,7.63341515,2286.3,2283.2,1.09495444]
[1770110208800,1.09323071,2286.8,2283.3,12.35648601]
[1770110208801,9.622013,2286.7,2283.3,12.35648601]
[1770110209054,2.727412,2286.7,2283.4,1.09485854]
[1770110209337,4.37292286,2286.9,2283.7,7.63341515]
[1770110209531,4.37292286,2286.9,2283.8,12.59005631]
[1770110209833,4.37292286,2286.9,2283.8,12.35648601]
[1770110210141,4.37292286,2286.9,2283.9,14.65848601]
[1770110210852,4.37292286,2286.9,2284.0,2.302]
[1770110211153,4.37292286,2286.9,2284.1,1.094523]
[1770110211460,4.37292286,2286.9,2284.2,0.5106917]
[1770110211744,0.1024,2286.8,2284.3,0.919]
[1770110211917,4.37292286,2286.9,2284.3,0.919]
[1770110212114,1.18338984,2287.0,2284.3,0.919]
[1770110212115,1.18336077,2287.0,2284.4,0.2335703]
[1770110212341,1.18336077,2287.0,2284.3,13.08713511]
[1770110212527,1.18336077,2287.0,2284.5,19.80779067]
[1770110212731,0.09020693,2287.0,2285.1,7.63341515]
[1770110212934,0.09020693,2287.0,2285.1,7.6090249]
[1770110213244,0.09020693,2287.0,2284.6,12.68506722]
[1770110213245,1.18334672,2287.0,2284.8,1.09418767]
[1770110213642,1.18334672,2287.0,2284.8,1.60487937]
[1770110213844,1.18334672,2287.0,2284.8,1.09418767]
[1770110214140,0.09020693,2287.0,2284.9,8.14410685]
[1770110214348,0.09020693,2287.0,2285.0,12.17437552]
[1770110214524,0.09020693,2287.0,2285.5,7.63341515]
[1770110214723,0.09020693,2287.0,2285.5,8.14410685]
[1770110215043,0.09020693,2287.0,2285.6,1.60449639]
[1770110215258,0.0011,2287.2,2285.7,1.4286917]
[1770110215463,0.0011,2286.8,2285.7,0.918]
[1770110215625,0.0011,2287.4,2285.7,13.09237552]
[1770110215951,1e-08,2287.8,2285.8,0.5106917]
[1770110216164,0.0011,2288.4,2286.3,12.17437552]
[1770110216343,0.0011,2288.4,2286.2,0.2335703]
[1770110216344,0.0011,2288.4,2287.2,7.63341515]
[1770110216518,0.22865148,2289.9,2288.4,0.22635208]
[1770110216717,0.0600693,2289.4,2288.4,0.22635208]
[1770110217145,4.36826711,2289.9,2288.5,1.09241861]
[1770110217146,0.0011,2289.9,2288.5,1.09241861]
[1770110217348,1.09286909,2289.9,2288.5,1.09241861]
[1770110217561,1.09286909,2289.9,2288.4,4.59602653]
[1770110217562,1.09286909,2289.9,2288.4,0.22635208]
[1770110217731,1.09286909,2289.9,2287.9,1.09267064]
[1770110217935,1.09286909,2289.9,2288.2,1.09255004]
[1770110218263,1.09286909,2289.9,2287.9,0.918]
[1770110218264,0.1024,2289.8,2287.9,0.918]
[1770110218556,12.69284095,2289.7,2287.9,0.918]
[1770110218719,12.59044095,2289.5,2287.9,1.0926877]
[1770110218919,0.1024,2289.4,2288.0,1.09265071]
[1770110219141,1.09203686,2289.3,2287.5,4.37153307]
[1770110219453,4.0,2288.5,2286.6,0.918]
[1770110220054,12.69284095,2289.2,2287.4,1.09294314]
[1770110220349,1.09203686,2289.3,2287.4,1.09294314]
[1770110220949,0.22752686,2289.8,2287.4,1.09294314]
[1770110221148,0.0011,2290.1,2287.8,1.09275286]
[1770110221350,0.0011,2290.1,2288.3,7.57581123]
[1770110221550,0.0011,2290.1,2288.4,0.917]
[1770110221759,0.0011,2290.1,2288.5,0.2335703]
[1770110222058,12.59044095,2290.9,2287.8,1.09275286]
[1770110222276,0.1024,2290.4,2288.5,0.917]
[1770110222428,3.205628,2290.3,2288.5,0.917]
[1770110222630,12.69284095,2290.4,2288.5,0.917]
[1770110223378,0.1024,2289.8,2287.8,1.09274301]
[1770110223656,0.1024,2289.8,2287.1,0.917]
[1770110223657,12.59044095,2289.8,2287.1,0.917]
[1770110223832,12.58607095,2289.8,2288.5,1.09241637]
[1770110224183,12.58607095,2289.8,2288.5,1.09241765]
[1770110224184,0.1024,2289.7,2288.5,1.09241765]
[1770110224476,0.1024,2289.7,2288.0,4.37062923]
[1770110224778,4.31504,2290.2,2288.2,4.37010802]
[1770110225061,0.1024,2290.1,2288.4,1.09243111]
[1770110225232,11.94205146,2290.4,2287.4,4.34477845]
[1770110225233,1.09156005,2290.4,2287.4,4.34477845]
[1770110225445,1.09146474,2290.5,2287.4,11.92058968]
[1770110225671,1.09146474,2290.5,2287.5,12.27677552]
[1770110226539,1.09146474,2290.5,2287.5,12.17437552]
[1770110227177,1.09146474,2290.5,2287.6,1.0928484]
[1770110227738,0.1024,2290.4,2287.6,1.0928484]
[1770110227942,0.1024,2290.2,2287.6,1.0928484]
[1770110228173,0.1024,2290.1,2287.6,1.0928484]
[1770110228576,0.2335703,2290.2,2287.6,1.0928484]
[1770110228771,0.1024,2289.9,2287.6,1.0928484]
[1770110229143,0.1024,2289.7,2287.3,4.3713936]
[1770110229346,1.09179841,2289.8,2287.3,5.2873936]
[1770110229558,1.09170305,2290.1,2287.3,5.2873936]
[1770110229952,1.09170305,2290.1,2287.0,3.21289117]
[1770110229953,12.59044095,2289.9,2287.0,4.37215809]
[1770110230258,1.09170305,2290.1,2282.8,4.38364335]
[1770110230259,1.96329086,2284.4,2282.8,4.38364335]
[1770110230441,0.22770186,2284.6,2282.8,4.38364335]
[1770110230442,0.22770186,2284.6,2282.9,13.26947385]
[1770110232760,5.47443264,2286.0,2282.9,13.26947385]
[1770110232761,2.19347865,2286.2,2283.3,0.1024]
[1770110233005,1.0999602,2286.8,2283.9,12.17437552]
[1770110233287,2.1999204,2287.1,2284.2,1.09447508]
[1770110233288,1.09308731,2287.1,2284.2,1.09447508]
[1770110233447,0.88726408,2287.0,2284.2,13.2688506]
[1770110233644,1.98722428,2286.9,2284.2,13.2688506]
[1770110233866,0.88726408,2286.8,2284.2,13.2688506]
[1770110234083,1.2023602,2286.6,2284.2,13.2688506]
[1770110234246,1.0999602,2286.4,2284.2,1.09447508]
[1770110234445,1.98722428,2286.4,2284.2,1.09447508]
[1770110234654,1.98722428,2286.3,2284.2,1.09447508]
[1770110235152,1.98722428,2286.3,2284.1,4.37790035]
[1770110235153,2.19352566,2286.1,2283.8,16.55227587]
[1770110235379,1.4666136,2286.3,2283.8,16.55227587]
[1770110235380,1.0999602,2286.3,2283.9,12.17437552]
[1770110235581,0.89252012,2286.2,2284.0,12.17437552]
[1770110235779,0.89252012,2286.1,2284.0,12.17437552]
[1770110235966,1.0999602,2286.4,2284.0,12.17437552]
[1770110236190,1.0999602,2286.2,2284.0,12.17437552]
[1770110236365,0.89248485,2286.1,2284.0,12.17437552]
[1770110236566,0.89248485,2286.0,2284.0,12.17437552]
[1770110236801,0.89248485,2285.9,2284.0,12.14486595]
[1770110236980,1.0999602,2286.3,2284.0,12.14486595]
[1770110237179,0.8944816,2286.2,2284.1,1.094523]
[1770110237397,1.0999602,2286.0,2284.1,1.094523]
[1770110237581,0.8944816,2285.9,2284.1,1.094523]
[1770110237792,2.1999204,2286.7,2284.5,12.17437552]
[1770110238104,2.93333873,2288.2,2285.6,7.57581123]
[1770110238271,1.09260958,2288.1,2285.7,0.917]
[1770110238584,2.93333873,2287.8,2285.7,0.917]
[1770110238783,0.1024,2287.8,2285.7,0.917]
[1770110239214,1.09280062,2287.7,2285.8,1.09370898]
[1770110239915,1.09278172,2287.8,2285.8,1.09370898]
[1770110240998,2.93333873,2288.4,2285.9,0.001]
[1770110241188,1.09260958,2288.1,2285.9,0.001]
[1770110241387,1.19499217,2288.2,2285.9,0.001]
[1770110241972,8.34341974,2288.5,2285.9,0.001]
[1770110241973,12.71312586,2288.5,2285.9,0.001]
[1770110242173,8.34341974,2288.5,2285.9,0.001]
[1770110242587,8.34341974,2288.5,2285.9,12.44871258]
[1770110243290,4.34341974,2288.5,2286.0,1.09361329]
[1770110243489,5.43584777,2288.5,2286.0,1.09361329]
[1770110243793,1.19486635,2288.4,2286.0,1.09361329]
[1770110243994,12.63703553,2288.3,2286.0,1.09361329]
[1770110244302,12.50586523,2288.1,2286.0,1.09361329]
[1770110244607,15.43920396,2288.1,2286.0,1.09361329]
[1770110244801,15.33680396,2288.1,2286.0,1.09361329]
[1770110245100,0.1024,2288.0,2286.0,1.09361329]
[1770110245403,0.1024,2287.8,2285.9,4.37545319]
[1770110245880,12.50586523,2287.9,2285.9,4.37545319]
[1770110246774,0.1024,2287.7,2285.9,0.001]
[1770110246973,0.1024,2287.4,2285.9,0.001]
[1770110247376,13.49637032,2287.5,2285.9,0.001]
[1770110247880,12.50586523,2287.4,2285.9,0.001]
[1770110248083,12.50586523,2287.4,2285.7,0.917]
[1770110248279,15.43920396,2287.4,2285.7,2.01073181]
[1770110248803,12.50586523,2287.0,2285.0,1.379]
[1770110248992,12.40346523,2286.8,2285.0,1.379]
[1770110249174,12.40346523,2286.8,2285.2,1.0939645]
[1770110249175,0.1024,2286.7,2285.2,1.0939645]
[1770110249371,0.1024,2286.7,2285.0,5.75531715]
[1770110249372,2.93333873,2287.4,2285.1,1.09404402]
[1770110249597,0.1024,2287.1,2285.1,1.09404402]
[1770110249810,0.89758138,2287.0,2285.1,1.09404402]
[1770110249995,0.89758138,2286.9,2285.1,1.09404402]
[1770110250185,0.1024,2287.3,2285.1,1.09404402]
[1770110250390,1.09294908,2287.4,2285.1,1.09404402]
[1770110250781,12.40346523,2287.5,2285.1,1.09404402]
[1770110250986,13.49637644,2287.5,2285.1,1.09404402]
[1770110251816,7.36282276,2287.9,2285.1,1.09404402]
[1770110251817,4.34341974,2288.5,2285.4,12.44771258]
[1770110252016,5.43583905,2288.5,2285.9,7.57581123]
[1770110252224,5.43585236,2288.5,2286.0,0.917]
[1770110252390,17.83931759,2288.5,2286.0,0.917]
[1770110253597,17.83931759,2288.5,2286.1,1.09356546]
[1770110254010,0.0011,2288.3,2286.1,1.09356546]
[1770110254587,0.0011,2288.3,2286.1,13.54127804]
[1770110255123,0.0011,2288.3,2286.5,12.44771258]
[1770110255487,0.0011,2288.3,2286.6,1.09332633]
[1770110256527,0.0011,2288.3,2286.6,13.54103891]
[1770110258319,15.75101252,2289.9,2287.1,7.57581123]
[1770110258519,12.40346523,2289.9,2287.2,13.36371258]
[1770110258823,12.40346523,2289.9,2287.7,7.57581123]
[1770110259320,13.49525601,2289.9,2287.8,0.916]
[1770110259505,12.40346523,2289.9,2287.8,0.916]
[1770110259816,12.40346523,2289.9,2287.9,1.0927051]
[1770110260020,13.4952187,2289.9,2287.9,1.0927051]
[1770110260717,13.49524991,2289.9,2287.9,1.0927051]
[1770110260919,1.09165538,2290.1,2287.9,1.0927051]
[1770110261423,0.0011,2290.2,2287.9,1.0927051]
[1770110262221,0.0011,2290.2,2287.9,13.54041768]
[1770110262398,0.0011,2290.2,2288.1,7.57581123]
[1770110262721,0.0011,2290.2,2287.9,1.0927051]
[1770110263220,0.90220819,2290.1,2287.9,1.0927051]
[1770110263422,0.90160326,2290.0,2287.9,1.0927051]
[1770110263597,0.0011,2290.2,2287.9,1.0927051]
[1770110263800,1.99329719,2290.1,2287.9,1.0927051]
[1770110264011,0.90159476,2290.0,2287.9,1.0927051]
[1770110264396,1.09170243,2290.1,2287.9,1.0927051]
[1770110265717,1.09175073,2289.9,2288.0,0.916]
[1770110266032,0.90136658,2289.8,2288.0,0.916]
[1770110266191,1.09175073,2289.9,2288.0,0.916]
[1770110266192,0.90136658,2289.7,2288.0,0.916]
[1770110266397,0.90147335,2289.6,2288.0,0.916]
[1770110266632,12.40346523,2289.8,2288.0,0.916]
[1770110266633,0.90137629,2289.5,2288.0,0.916]
[1770110266806,12.40346523,2289.8,2288.0,0.916]
[1770110267010,12.40346523,2289.8,2287.6,4.3708204]
[1770110267011,12.40346523,2289.5,2287.6,4.3708204]
[1770110267339,4.0,2288.1,2287.5,1.09288983]
[1770110267907,4.0,2288.1,2287.3,4.37158469]
[1770110269232,4.0,2288.1,2287.2,1.09303952]
[1770110269436,1.5022846,2288.7,2287.2,1.09303952]
[1770110269597,2.2557713,2288.9,2287.2,1.09303952]
[1770110269598,1.0922411,2288.9,2287.2,1.09303952]
[1770110269802,0.90166997,2288.8,2287.2,1.09303952]
[1770110269997,1.09237088,2288.6,2287.2,1.09303952]
[1770110270199,0.90171973,2288.5,2287.2,1.09303952]
[1770110270413,1.09237088,2288.6,2287.2,1.09303952]
[1770110270619,0.90172807,2288.5,2287.2,1.09303952]
[1770110270839,0.90172807,2288.4,2287.2,1.09303952]
[1770110271062,0.90172807,2288.3,2287.2,1.09303952]
[1770110271214,1.09237088,2288.6,2287.2,1.09303952]
[1770110271415,3.2,2288.0,2287.2,1.09303952]
[1770110272045,1.5022846,2288.8,2287.2,1.09303952]
[1770110272245,0.90181561,2288.7,2287.2,1.09303952]
[1770110273050,12.40346523,2289.1,2287.2,1.09303952]
[1770110273346,1.09202178,2289.4,2287.2,1.09303952]
[1770110273553,0.90204235,2289.3,2287.2,1.09303952]
[1770110273719,0.90204235,2289.2,2287.2,1.09303952]
[1770110273919,16.86059021,2289.6,2287.3,12.16179818]
[1770110273920,1.5022846,2289.6,2287.3,12.16179818]
[1770110274219,0.90219221,2289.5,2287.3,12.16179818]
[1770110274420,0.90219221,2289.4,2287.3,12.16179818]
[1770110274647,0.90219221,2289.3,2287.3,12.16179818]
[1770110274820,2.59416017,2289.7,2287.3,12.16179818]
[1770110275020,0.90227225,2289.6,2287.3,12.16179818]
[1770110275221,13.3949058,2289.5,2287.2,1.09303952]
[1770110275428,0.90227225,2289.4,2287.2,1.09303952]
[1770110276176,1.99426212,2289.4,2287.2,1.09303952]
[1770110276470,0.90227225,2289.3,2287.2,1.09303952]
[1770110277136,0.90227225,2289.3,2287.3,0.63811976]
[1770110278037,0.90227225,2289.3,2287.4,1.09294395]
[1770110278232,1.5022846,2289.5,2287.4,13.25474213]
[1770110278440,0.90439234,2289.4,2287.4,13.25474213]
[1770110278645,1.091875,2289.7,2287.4,13.25474213]
[1770110278848,3.10306005,2289.6,2287.5,1.82646377]
[1770110279061,0.90463639,2289.5,2287.5,1.82646377]
[1770110279253,0.90463639,2289.4,2287.5,1.82646377]
[1770110279460,0.90463639,2289.3,2287.5,13.98826195]
[1770110279637,0.69613906,2289.6,2287.6,1.50812059]
[1770110279837,0.90650495,2289.5,2287.6,1.50812059]
[1770110280166,0.90650495,2289.4,2287.7,1.09280062]
[1770110280370,1.5022846,2289.6,2287.7,1.09280062]
[1770110280371,0.90650495,2289.3,2287.7,1.09280062]
[1770110280582,0.90650495,2289.2,2287.7,1.09280062]
[1770110280785,13.3991385,2289.1,2287.7,1.09280062]
[1770110280987,1.5022846,2288.7,2287.1,0.916]
[1770110281196,1.5022846,2288.3,2287.5,1.09286868]
[1770110281396,0.90650495,2288.2,2287.5,1.09286868]
[1770110281697,2.40878955,2288.1,2287.1,2.00905156]
[1770110281899,1.1473839,2288.0,2287.1,5.288296]
[1770110282054,0.90650495,2287.9,2287.2,1.09301469]
[1770110282258,0.90650495,2287.8,2287.2,1.09301469]
[1770110282468,0.24087895,2288.0,2286.8,0.001]
[1770110282469,0.90650495,2287.7,2286.8,0.001]
[1770110282809,0.90650495,2287.6,2286.8,0.001]
[1770110282948,1.5022846,2287.7,2286.6,4.37328431]
[1770110282949,2.6496685,2287.5,2286.6,4.37328431]
[1770110283154,0.24087895,2288.0,2287.1,1.09308328]
[1770110283588,1.09251562,2288.3,2287.1,1.09308328]
[1770110283956,16.5769057,2288.7,2287.1,1.09308328]
[1770110284168,13.58498273,2288.7,2286.2,1.09751762]
[1770110284660,1.09231076,2288.8,2286.5,12.16279818]
[1770110284860,0.54613295,2288.7,2286.7,12.16179818]
[1770110285059,0.0011,2289.0,2286.7,12.16179818]
[1770110285312,0.0011,2289.0,2287.3,12.16179818]
[1770110285491,0.0011,2289.0,2287.4,0.916]
[1770110285686,0.0011,2289.0,2287.4,13.07779818]
[1770110285998,0.0011,2289.0,2287.5,1.30777982]
[1770110286168,0.0011,2289.0,2287.6,1.0928484]
[1770110290279,1.09285073,2289.9,2287.6,1.0928484]
[1770110290280,0.0011,2290.4,2289.0,12.16179818]
[1770110290602,0.0011,2290.4,2289.1,0.916]
[1770110291511,0.20237653,2291.9,2289.8,12.16179818]
[1770110291678,1.29320218,2291.9,2289.9,1.97430905]
[1770110291882,1.09092664,2291.7,2289.9,1.97430905]
[1770110292075,1.09099009,2291.5,2289.9,1.97430905]
[1770110292388,1.09084562,2291.8,2290.0,1.09170305]
[1770110293201,12.49263355,2291.5,2290.0,1.09170305]
[1770110293372,12.49263355,2291.5,2290.0,1.08850305]
[1770110293575,12.49263355,2291.2,2289.7,1.09184046]
[1770110293773,12.49263355,2291.2,2289.6,1.09186298]
[1770110294006,12.59503355,2291.0,2289.6,1.0918576]
[1770110294202,13.58390772,2290.9,2289.0,1.09217999]
[1770110294384,12.59503355,2290.8,2289.0,1.09217999]
[1770110295299,12.49263355,2290.6,2289.0,1.09217999]
[1770110295609,0.90646379,2290.5,2289.0,1.09217999]
[1770110295807,1.33990973,2290.4,2289.0,2.16674719]
[1770110296029,13.83254328,2290.4,2288.9,2.00821391]
[1770110296311,1.09160771,2290.2,2288.9,2.00821391]
[1770110296883,0.8,2290.0,2288.9,2.00821391]
[1770110297614,0.8,2290.0,2288.9,1.09221391]
[1770110298113,0.0011,2290.5,2288.9,1.09221391]
[1770110298299,0.0011,2290.5,2289.0,0.54613137]
[1770110298506,0.0011,2290.5,2288.6,4.36942882]
[1770110298702,13.39907946,2290.4,2288.6,4.36942882]
[1770110299010,0.90644591,2290.3,2288.6,4.36942882]
[1770110299182,0.90644591,2290.2,2288.6,4.36942882]
[1770110299384,12.49263355,2290.4,2288.6,4.36942882]
[1770110299607,0.0032,2290.0,2288.6,5.35250465]
[1770110300227,0.0032,2290.0,2287.7,4.37110105]
[1770110300228,1.09179841,2289.8,2287.7,4.37110105]
[1770110300384,0.90653399,2289.7,2287.7,4.37110105]
[1770110300712,1.09179841,2289.8,2287.7,4.37110105]
[1770110300713,13.4684244,2289.8,2287.7,4.37110105]
[1770110300912,13.28315716,2289.7,2287.7,4.37110105]
[1770110301119,0.90653117,2289.6,2287.7,4.37110105]
[1770110301296,2.23515872,2289.5,2287.8,0.54749017]
[1770110301609,1.32831572,2289.5,2287.8,0.54749017]
[1770110301803,12.37662599,2289.3,2287.8,0.54749017]
[1770110301982,0.90675873,2289.2,2287.8,0.54749017]
[1770110302185,12.37662599,2289.3,2287.8,0.001]
[1770110302382,1.09213227,2289.1,2287.8,0.001]
[1770110303182,13.28330211,2289.0,2287.8,0.001]
[1770110303387,13.2832404,2288.9,2287.5,1.09386487]
[1770110303715,0.90664121,2288.8,2287.5,0.001]
[1770110303912,1.32832672,2288.7,2287.5,1.09389597]
[1770110304405,1.09237088,2288.6,2287.5,0.001]
[1770110305583,12.37662599,2288.2,2286.6,0.001]
[1770110305903,12.37662599,2288.0,2286.6,0.001]
[1770110306087,12.37662599,2287.8,2286.6,0.001]
[1770110306293,0.90582813,2287.7,2286.6,0.001]
[1770110306494,1.09280062,2287.7,2286.6,0.001]
[1770110306890,1.09280062,2287.7,2286.2,0.004]
[1770110306891,13.28090589,2287.6,2286.2,0.004]
[1770110307191,1.43737065,2287.5,2286.2,0.004]
[1770110307400,13.81399664,2287.5,2286.2,0.004]
[1770110307798,1.43737065,2287.5,2286.2,0.004]
[1770110308115,1.09280062,2287.7,2286.2,0.004]
[1770110308317,13.46942661,2287.7,2286.2,0.004]
[1770110309022,1.2376626,2288.1,2286.2,0.004]
[1770110309208,12.37662599,2288.9,2286.6,12.07573517]
[1770110309409,6.63449441,2289.5,2286.8,12.07573517]
[1770110309410,2.00798916,2289.4,2286.8,12.07573517]
[1770110309728,12.37662599,2289.5,2286.7,0.52356224]
[1770110309729,12.37662599,2289.5,2286.9,12.59929741]
[1770110309892,1.2376626,2289.4,2287.0,1.25992974]
[1770110310094,13.61428859,2289.4,2287.0,1.25992974]
[1770110310788,1.09203686,2289.3,2287.1,1.09308731]
[1770110311311,12.37662599,2289.1,2287.1,1.09308731]
[1770110312402,1.2376626,2289.4,2287.4,7.58129227]
[1770110312606,13.46851977,2289.7,2287.5,0.75812923]
[1770110312805,12.37662599,2289.7,2287.6,1.0928484]
[1770110313118,0.0032,2290.0,2287.6,1.0928484]
[1770110313323,1.09490425,2290.0,2287.8,12.07573517]
[1770110313521,1.00575856,2289.9,2287.6,2.0088484]
[1770110313814,1.00575856,2289.9,2287.5,5.12952283]
[1770110313815,12.47902599,2289.0,2287.5,1.09288924]
[1770110313991,12.47902599,2289.0,2287.0,1.25992974]
[1770110313992,12.47902599,2288.8,2287.0,1.09313379]
[1770110314193,0.1024,2288.5,2287.0,1.09312653]
[1770110314416,0.1024,2288.5,2287.1,1.09306309]
[1770110314586,1.3503026,2288.5,2287.1,1.63962004]
[1770110314913,2.34033425,2288.5,2287.2,1.0929973]
[1770110315225,1.2479026,2288.5,2287.2,1.0929973]
[1770110315396,1.09211355,2289.2,2287.2,1.0929973]
[1770110315592,1.19434147,2289.5,2287.2,1.0929973]
[1770110315793,0.90281252,2289.4,2287.2,1.0929973]
[1770110316013,1.19434147,2289.5,2287.3,0.60117123]
[1770110316197,1.19434147,2289.5,2287.3,0.59797123]
[1770110316809,2.11034147,2289.5,2287.4,1.09294395]
[1770110317117,1.09194147,2289.5,2287.4,1.09294395]
[1770110317426,1.44772888,2289.8,2287.4,13.16867912]
[1770110317593,1.09177618,2289.9,2287.6,12.07573517]
[1770110317797,14.38440217,2289.9,2287.6,12.07573517]
[1770110318315,4.37001304,2290.0,2287.6,12.07573517]
[1770110318316,0.0032,2290.0,2287.6,12.07573517]
[1770110318490,1.09491401,2290.0,2287.6,12.07573517]
[1770110318690,0.0032,2290.0,2287.9,1.0927051]
[1770110318917,0.0032,2290.0,2288.0,1.75392607]
[1770110320307,12.37662599,2289.7,2286.2,0.004]
[1770110320508,13.88143124,2289.3,2287.7,1.09279848]
[1770110320827,1.0922277,2288.9,2286.6,4.37329249]
[1770110321510,0.90300521,2288.8,2286.6,4.37329249]
[1770110321820,12.37662599,2288.3,2286.5,1.09437415]
[1770110322027,0.916,2288.2,2286.5,1.09437415]
[1770110322225,13.29262599,2288.2,2286.5,1.09437415]
[1770110322425,12.37662599,2288.1,2286.5,1.09437415]
[1770110322604,2.23305488,2288.0,2286.5,1.09437415]
[1770110322929,1.0927051,2287.9,2286.5,0.001]
[1770110323116,1.3292626,2288.0,2286.5,0.001]
[1770110323508,4.3698598,2288.5,2286.5,0.001]
[1770110323708,3.8698598,2288.5,2286.9,0.001]
[1770110324799,13.46902401,2288.6,2286.9,0.001]
[1770110325010,24.17143124,2289.2,2286.9,0.001]
[1770110325211,5.27421728,2289.1,2286.9,0.001]
[1770110325429,1.87429755,2289.0,2286.9,0.001]
[1770110326816,1.0922277,2288.9,2286.9,0.001]
[1770110327944,2.96650314,2289.0,2286.9,0.001]
[1770110328150,12.47902599,2288.9,2286.7,0.001]
[1770110328339,14.64331629,2287.8,2285.7,0.0008]
[1770110328537,14.19824252,2287.7,2286.1,4.37424115]
[1770110328748,0.90561653,2287.6,2286.3,1.09346015]
[1770110329062,1.09289617,2287.5,2285.7,0.0008]
[1770110329221,0.90561653,2287.4,2285.7,0.0008]
[1770110329415,1.09289617,2287.5,2285.7,0.0008]
[1770110329640,1.45234597,2287.4,2285.7,0.0008]
[1770110329846,0.54644809,2287.4,2285.7,0.0008]
[1770110330142,0.90586605,2287.3,2285.7,0.0008]
[1770110330448,0.90548744,2287.2,2285.7,0.0008]
[1770110330624,13.47008788,2287.4,2285.7,0.0008]
[1770110330825,15.3770152,2287.3,2285.7,0.0008]
[1770110331044,1.09308731,2287.1,2285.7,0.0008]
[1770110331547,14.0167271,2287.1,2285.7,0.0008]
[1770110331725,12.92363979,2287.0,2285.7,0.0008]
[1770110332322,5.92008197,2287.3,2285.7,0.0008]
[1770110332323,1.54789841,2287.3,2285.7,0.0008]
[1770110332531,1.63939778,2287.4,2285.7,0.0008]
[1770110334131,0.90337573,2287.3,2285.7,0.0008]
[1770110334330,14.13487844,2287.4,2285.7,0.0008]
[1770110334923,14.13487844,2287.4,2285.2,4.37560164]
[1770110334924,12.49548066,2286.5,2283.6,11.71602464]
[1770110335122,0.1024,2286.2,2283.6,11.71602464]
[1770110335479,14.50315795,2286.4,2284.1,11.71602464]
[1770110335638,14.50315795,2286.4,2283.3,4.48197969]
[1770110335639,2.00767729,2286.4,2284.2,11.71682464]
[1770110335951,0.916,2286.6,2284.2,11.71682464]
[1770110336249,12.49548066,2287.0,2284.2,11.71682464]
[1770110336250,0.916,2286.5,2284.2,11.71682464]
[1770110336630,12.83145096,2286.9,2284.2,11.71682464]
[1770110336833,1.81703876,2286.8,2284.2,11.71682464]
[1770110337035,0.916,2286.8,2284.2,11.71682464]
[1770110337236,2.45778362,2286.7,2284.4,1.09437926]
[1770110338558,3.37378362,2286.7,2284.4,12.8104039]
[1770110338856,3.37378362,2286.7,2284.4,12.8114039]